bitfinex/quotes_BTCUSD_20241107
["timestamp","ask_amount","ask_price","bid_price","bid_amount"]
[1730997231645,0.014733,75839.0,75838.0,0.53007011]
[1730997231803,0.007733,75839.0,75838.0,0.52907011]
[1730997232109,0.000833,75839.0,75838.0,0.52807011]
[1730997232266,0.002833,75839.0,75838.0,0.52807011]
[1730997232424,0.003833,75839.0,75838.0,0.52807011]
[1730997232822,0.003833,75839.0,75838.0,0.54039498]
[1730997233676,0.003833,75839.0,75838.0,0.59931865]
[1730997233877,0.003833,75839.0,75838.0,0.61895988]
[1730997234137,0.003833,75839.0,75838.0,0.7236011]
[1730997234282,0.003833,75839.0,75838.0,0.77149498]
[1730997234684,0.002833,75839.0,75838.0,0.94550395]
[1730997234862,0.000748,75853.0,75845.0,0.075]
[1730997235065,0.000748,75853.0,75845.0,0.6030301]
[1730997235280,0.19885018,75853.0,75845.0,0.6030301]
[1730997235931,0.19885018,75853.0,75845.0,0.61534684]
[1730997236148,0.0226039,75846.0,75845.0,0.63134684]
[1730997236352,0.0226039,75846.0,75845.0,0.63334684]
[1730997236965,0.0226039,75846.0,75845.0,0.79144684]
[1730997237204,0.0226039,75846.0,75845.0,0.90924394]
[1730997238264,0.0226039,75846.0,75845.0,0.79144684]
[1730997238472,0.0226039,75846.0,75845.0,0.90919268]
[1730997239329,0.0226039,75846.0,75845.0,0.79144684]
[1730997239767,0.0226039,75846.0,75845.0,0.83143493]
[1730997240174,0.0234369,75846.0,75845.0,0.85643493]
[1730997240611,0.0234369,75846.0,75845.0,0.85643492]
[1730997240829,0.0234369,75846.0,75845.0,0.85443492]
[1730997241349,0.0234369,75846.0,75845.0,0.92408693]
[1730997241557,0.0234369,75846.0,75845.0,0.63486681]
[1730997241772,0.0234369,75846.0,75845.0,0.42410581]
[1730997242430,0.0234369,75846.0,75845.0,0.63634683]
[1730997242631,0.0224369,75846.0,75845.0,0.62834683]
[1730997242826,0.0214369,75846.0,75845.0,0.71851501]
[1730997243000,0.0214369,75846.0,75845.0,0.69988129]
[1730997243203,0.0214369,75846.0,75845.0,0.54134682]
[1730997243456,0.0214369,75846.0,75845.0,0.54034682]
[1730997243908,0.0224369,75846.0,75845.0,0.54634682]
[1730997244335,0.0214369,75846.0,75845.0,0.54034682]
[1730997244546,0.0214369,75846.0,75845.0,0.54134682]
[1730997244761,0.0214369,75846.0,75845.0,0.4091058]
[1730997245173,0.0264369,75846.0,75845.0,0.41009143]
[1730997247362,0.0314369,75846.0,75845.0,0.41009143]
[1730997247803,0.0264369,75846.0,75845.0,0.41009143]
[1730997248239,0.15103495,75856.0,75845.0,0.41009143]
[1730997248485,0.15103495,75856.0,75846.0,0.01230237]
[1730997248703,0.15103495,75856.0,75847.0,0.01230237]
[1730997248947,0.15103495,75856.0,75848.0,0.01230237]
[1730997249172,0.00982373,75855.0,75849.0,0.01230237]
[1730997249429,0.00982373,75855.0,75850.0,0.01230237]
[1730997249682,0.00982373,75855.0,75851.0,0.01230237]
[1730997249897,0.00982373,75855.0,75852.0,0.01230237]
[1730997250080,0.00982373,75855.0,75853.0,0.01230237]
[1730997250314,0.00982373,75855.0,75854.0,0.01230237]
[1730997250527,0.00982373,75855.0,75854.0,0.01255143]
[1730997251241,0.01682373,75855.0,75854.0,0.01255143]
[1730997251717,0.01382373,75855.0,75854.0,0.01255142]
[1730997251953,0.02182373,75855.0,75854.0,0.01355142]
[1730997252188,0.11782373,75855.0,75854.0,0.01355142]
[1730997252405,0.24692373,75855.0,75854.0,0.01355142]
[1730997252652,0.25392373,75855.0,75854.0,0.01455463]
[1730997252880,0.25392373,75855.0,75854.0,0.00224905]
[1730997253569,0.26392373,75855.0,75854.0,0.00224905]
[1730997254444,0.26192373,75855.0,75854.0,0.00124905]
[1730997254656,0.25392373,75855.0,75854.0,0.00024905]
[1730997254917,0.26592373,75855.0,75854.0,0.00124905]
[1730997255174,0.56583539,75855.0,75854.0,0.00224905]
[1730997255396,0.017,75852.0,75851.0,0.39551]
[1730997255605,0.38356475,75852.0,75851.0,0.39551]
[1730997256114,0.37174102,75852.0,75851.0,0.39551]
[1730997256326,0.38156375,75852.0,75851.0,0.39551]
[1730997256731,0.38156181,75852.0,75851.0,0.39551]
[1730997257173,0.39556181,75852.0,75851.0,0.39551]
[1730997257672,0.38156181,75852.0,75851.0,0.39551]
[1730997257875,0.39556181,75852.0,75851.0,0.39551]
[1730997258976,0.40956181,75852.0,75851.0,0.39551]
[1730997259618,0.39974102,75852.0,75851.0,0.39551]
[1730997259834,0.40955868,75852.0,75851.0,0.39551]
[1730997260089,0.43255868,75852.0,75851.0,0.39551]
[1730997260314,0.43255868,75852.0,75839.0,0.001666]
[1730997260315,0.26867064,75840.0,75839.0,0.001666]
[1730997260536,0.54422932,75840.0,75839.0,0.19976818]
[1730997261011,0.54422932,75840.0,75839.0,0.001666]
[1730997261662,0.59865225,75840.0,75839.0,0.001666]
[1730997262149,0.61265225,75840.0,75839.0,0.001666]
[1730997262358,0.57222932,75840.0,75839.0,0.001666]
[1730997263256,0.56241166,75840.0,75839.0,0.001666]
[1730997263479,0.57221878,75840.0,75839.0,0.001666]
[1730997263915,0.55821878,75840.0,75839.0,0.001666]
[1730997264133,0.007,75823.0,75822.0,0.19976818]
[1730997264362,0.40091166,75823.0,75822.0,0.19976818]
[1730997264814,0.40091166,75823.0,75822.0,0.001666]
[1730997265024,0.40291166,75823.0,75822.0,0.001666]
[1730997265252,0.40091166,75823.0,75822.0,0.001666]
[1730997265463,0.40891166,75823.0,75822.0,0.001666]
[1730997265877,0.41691166,75823.0,75822.0,0.001666]
[1730997267640,0.26324102,75823.0,75822.0,0.001666]
[1730997267858,0.30676524,75823.0,75822.0,0.001666]
[1730997272595,0.46043588,75823.0,75822.0,0.001666]
[1730997274492,0.46243588,75823.0,75822.0,0.001666]
[1730997274791,0.46043588,75823.0,75822.0,0.001666]
[1730997276265,0.4702388,75823.0,75822.0,0.001666]
[1730997276731,0.30676524,75823.0,75822.0,0.001666]
[1730997276938,0.31656823,75823.0,75822.0,0.001666]
[1730997277138,0.30676524,75823.0,75822.0,0.001666]
[1730997277349,0.31656825,75823.0,75822.0,0.001666]
[1730997277575,0.30176524,75823.0,75822.0,0.001666]
[1730997277782,0.29676524,75823.0,75822.0,0.001666]
[1730997277988,0.16452422,75823.0,75822.0,0.001666]
[1730997278257,0.05952422,75823.0,75822.0,0.001666]
[1730997278731,0.016,75823.0,75822.0,0.001666]
[1730997279554,0.016,75823.0,75822.0,0.076966]
[1730997280635,0.05440333,75829.0,75822.0,0.076966]
[1730997281049,0.005,75834.0,75822.0,0.076966]
[1730997281050,0.002,75823.0,75822.0,0.076966]
[1730997281469,0.003,75823.0,75822.0,0.076966]
[1730997281867,0.003,75823.0,75822.0,0.001666]
[1730997283167,0.001,75823.0,75822.0,0.001666]
[1730997284481,0.001,75823.0,75822.0,0.25580702]
[1730997284691,0.003,75823.0,75822.0,0.25580702]
[1730997285733,0.002,75823.0,75822.0,0.25580702]
[1730997286152,0.00983405,75840.0,75823.0,0.0817]
[1730997286355,0.19810218,75833.0,75824.0,0.13487841]
[1730997286568,0.005,75847.0,75824.0,0.13224102]
[1730997286774,0.005,75842.0,75824.0,0.13487841]
[1730997286981,0.19810218,75837.0,75823.0,0.0817]
[1730997287189,0.000833,75838.0,75823.0,0.21394102]
[1730997287401,0.000833,75838.0,75824.0,0.19810218]
[1730997287615,0.001,75833.0,75824.0,0.19810218]
[1730997287999,0.01166757,75838.0,75824.0,0.19810218]
[1730997288174,0.001833,75838.0,75824.0,0.19810218]
[1730997288726,0.00983457,75837.0,75824.0,0.19810218]
[1730997289182,0.03344264,75837.0,75824.0,0.19810218]
[1730997289417,0.15367064,75833.0,75822.0,0.001666]
[1730997289621,0.15367064,75827.0,75822.0,0.001666]
[1730997289828,0.00983457,75826.0,75822.0,0.001666]
[1730997290032,0.00983457,75825.0,75822.0,0.001666]
[1730997290247,0.00983457,75824.0,75822.0,0.001666]
[1730997290457,0.00983457,75823.0,75822.0,0.001666]
[1730997290667,0.00983457,75826.0,75822.0,0.001666]
[1730997290867,0.00983457,75825.0,75822.0,0.001666]
[1730997291072,0.00983457,75824.0,75822.0,0.001666]
[1730997291271,0.00983457,75825.0,75822.0,0.001666]
[1730997291701,0.00983457,75824.0,75822.0,0.001666]
[1730997291906,0.00983457,75825.0,75822.0,0.001666]
[1730997292092,0.00983457,75824.0,75822.0,0.001666]
[1730997292305,0.11983457,75823.0,75822.0,0.001666]
[1730997292510,0.39620021,75823.0,75822.0,0.001666]
[1730997293085,0.34697559,75823.0,75822.0,0.001666]
[1730997293287,0.33897559,75823.0,75822.0,0.001666]
[1730997293713,0.36697559,75823.0,75822.0,0.001666]
[1730997295099,0.35297559,75823.0,75822.0,0.001666]
[1730997295306,0.36697229,75823.0,75822.0,0.001666]
[1730997295506,0.36197229,75823.0,75822.0,0.001666]
[1730997295910,0.14783127,75823.0,75822.0,0.001666]
[1730997296154,0.04783127,75823.0,75822.0,0.001666]
[1730997296349,0.04283127,75823.0,75822.0,0.001666]
[1730997297516,0.28007229,75823.0,75822.0,0.001666]
[1730997297908,0.28507229,75823.0,75822.0,0.001666]
[1730997298967,0.3391954,75823.0,75822.0,0.001666]
[1730997299177,0.27507229,75823.0,75822.0,0.001666]
[1730997299376,0.28507229,75823.0,75822.0,0.001666]
[1730997300003,0.25707229,75823.0,75822.0,0.001666]
[1730997300374,0.27107229,75823.0,75822.0,0.001666]
[1730997301440,0.28707229,75823.0,75822.0,0.001666]
[1730997301640,0.28507229,75823.0,75822.0,0.001666]
[1730997301843,0.3391954,75823.0,75822.0,0.001666]
[1730997303966,0.4178954,75823.0,75822.0,0.001666]
[1730997304110,0.15367064,75809.0,75808.0,0.19810218]
[1730997304321,0.34587064,75809.0,75808.0,0.19810218]
[1730997304519,0.35570191,75809.0,75808.0,0.19810218]
[1730997304737,0.005,75801.0,75800.0,0.001668]
[1730997304933,0.40091166,75801.0,75800.0,0.001668]
[1730997305106,0.40291166,75801.0,75800.0,0.001668]
[1730997305522,0.017,75796.0,75795.0,0.001664]
[1730997305888,0.007,75788.0,75779.0,0.19810218]
[1730997306066,0.39291166,75788.0,75779.0,0.19810218]
[1730997306264,0.005,75786.0,75779.0,0.19810218]
[1730997306500,0.005,75786.0,75775.0,0.001492]
[1730997306501,0.40091166,75786.0,75775.0,0.001492]
[1730997306705,0.24724102,75786.0,75775.0,0.001492]
[1730997307324,0.24924102,75786.0,75775.0,0.001492]
[1730997307528,0.005,75776.0,75775.0,0.001492]
[1730997307732,0.39291166,75776.0,75775.0,0.001492]
[1730997307936,0.40291166,75776.0,75775.0,0.001492]
[1730997308148,0.44320283,75776.0,75775.0,0.001492]
[1730997308354,0.44320283,75776.0,75763.0,0.19959418]
[1730997308355,0.26867064,75764.0,75763.0,0.19959418]
[1730997308608,0.6645986,75764.0,75763.0,0.001492]
[1730997309041,0.005,75752.0,75746.0,0.001494]
[1730997309250,0.15867064,75747.0,75746.0,0.001494]
[1730997309455,0.32978629,75747.0,75746.0,0.001494]
[1730997310261,0.42978629,75747.0,75746.0,0.001494]
[1730997310467,0.44378629,75747.0,75746.0,0.001494]
[1730997310615,0.43878629,75747.0,75746.0,0.001494]
[1730997310816,0.47915306,75747.0,75746.0,0.001494]
[1730997311226,0.48415306,75747.0,75746.0,0.001494]
[1730997311433,0.49315306,75747.0,75746.0,0.001494]
[1730997311931,0.1932414,75747.0,75746.0,0.001494]
[1730997312162,0.05436677,75747.0,75746.0,0.001494]
[1730997312389,0.026,75747.0,75746.0,0.001494]
[1730997312588,0.012,75747.0,75746.0,0.001494]
[1730997312795,0.0535635,75756.0,75746.0,0.001494]
[1730997312974,0.014,75747.0,75746.0,0.001494]
[1730997313196,0.011,75747.0,75746.0,0.001494]
[1730997313397,0.024,75747.0,75746.0,0.001494]
[1730997313897,0.011,75747.0,75746.0,0.001494]
[1730997315186,0.45278883,75747.0,75746.0,0.001494]
[1730997315392,0.5509714,75747.0,75746.0,0.001494]
[1730997315797,0.45278883,75747.0,75746.0,0.001494]
[1730997316224,0.4856823,75747.0,75746.0,0.001494]
[1730997316376,0.4956823,75747.0,75746.0,0.001494]
[1730997316783,0.4976823,75747.0,75746.0,0.001494]
[1730997316986,0.33901166,75747.0,75746.0,0.001494]
[1730997317212,0.44778883,75747.0,75746.0,0.001494]
[1730997317561,0.29811819,75747.0,75746.0,0.001494]
[1730997317777,0.05187717,75747.0,75746.0,0.001494]
[1730997318233,0.014,75747.0,75746.0,0.001494]
[1730997318428,0.028,75747.0,75746.0,0.001494]
[1730997318862,0.014,75747.0,75746.0,0.001494]
[1730997319216,0.024,75747.0,75746.0,0.001494]
[1730997319425,0.01,75747.0,75746.0,0.001494]
[1730997319696,0.011,75747.0,75746.0,0.001494]
[1730997319883,0.26467064,75747.0,75746.0,0.001494]
[1730997320111,0.27167064,75747.0,75746.0,0.001494]
[1730997320318,0.27667064,75747.0,75746.0,0.001494]
[1730997320482,0.123,75747.0,75746.0,0.001494]
[1730997320694,0.023,75747.0,75746.0,0.001494]
[1730997321077,0.007,75747.0,75746.0,0.001494]
[1730997321692,0.01,75747.0,75746.0,0.001494]
[1730997322138,0.007,75747.0,75746.0,0.001494]
[1730997322603,0.011,75747.0,75746.0,0.001494]
[1730997322761,0.004,75747.0,75746.0,0.001494]
[1730997323196,0.009,75747.0,75746.0,0.001494]
[1730997323368,0.009,75747.0,75744.0,0.063434]
[1730997323823,0.01,75747.0,75745.0,0.13224102]
[1730997324269,0.006,75747.0,75746.0,0.00264021]
[1730997324488,0.000834,75762.0,75746.0,0.13488123]
[1730997324731,0.19810218,75753.0,75747.0,0.13224102]
[1730997324930,0.19810218,75750.0,75747.0,0.13224102]
[1730997325192,0.15367064,75760.0,75746.0,0.001]
[1730997325391,0.001,75747.0,75746.0,0.003]
[1730997326031,0.105,75753.0,75746.0,0.001]
[1730997326260,0.15367064,75748.0,75746.0,0.003]
[1730997326456,0.15367064,75748.0,75746.0,0.002]
[1730997326943,0.001,75747.0,75746.0,0.003]
[1730997327145,0.15367064,75748.0,75746.0,0.003]
[1730997327146,0.15367064,75748.0,75746.0,0.002]
[1730997327396,0.1,75747.0,75746.0,0.002]
[1730997327532,0.1,75747.0,75736.0,0.01221438]
[1730997327737,0.1,75747.0,75737.0,0.01221438]
[1730997327987,0.1,75747.0,75731.0,0.19810218]
[1730997327988,0.101,75747.0,75746.0,0.002]
[1730997328159,0.102,75747.0,75746.0,0.002]
[1730997328365,0.001,75747.0,75731.0,0.19810218]
[1730997328587,0.1,75750.0,75732.0,0.01222848]
[1730997328773,0.001,75747.0,75736.0,0.002]
[1730997328971,0.001,75747.0,75737.0,0.01222848]
[1730997329177,0.001,75747.0,75736.0,0.002]
[1730997329178,0.001,75747.0,75738.0,0.01222848]
[1730997329428,0.07257649,75749.0,75739.0,0.01222848]
[1730997329609,0.1,75750.0,75740.0,0.01222848]
[1730997329777,0.1,75750.0,75741.0,0.01222848]
[1730997329995,0.001,75747.0,75742.0,0.01222848]
[1730997330196,0.1,75750.0,75743.0,0.01222848]
[1730997330377,0.1,75750.0,75731.0,0.19810218]
[1730997330378,0.005,75747.0,75744.0,0.01222848]
[1730997330574,0.23224102,75746.0,75745.0,0.01222848]
[1730997331913,0.24024102,75746.0,75745.0,0.01222848]
[1730997332315,0.14496214,75746.0,75745.0,0.01222848]
[1730997332526,0.008,75746.0,75745.0,0.01222848]
[1730997332931,0.24024102,75746.0,75745.0,0.01222848]
[1730997333394,0.24024102,75746.0,75731.0,0.19810218]
[1730997333395,0.1,75745.0,75731.0,0.19810218]
[1730997333556,0.1355241,75745.0,75731.0,0.19810218]
[1730997333762,0.1355241,75745.0,75737.0,0.02043735]
[1730997333965,0.1355241,75745.0,75738.0,0.0122807]
[1730997334135,0.1355241,75745.0,75729.0,0.001666]
[1730997334136,0.1355241,75745.0,75739.0,0.0122807]
[1730997334503,0.1,75745.0,75740.0,0.0122807]
[1730997334710,0.1,75745.0,75739.0,0.02046783]
[1730997334711,0.101,75745.0,75741.0,0.0122807]
[1730997334941,0.101,75745.0,75742.0,0.0122807]
[1730997335152,0.102,75745.0,75743.0,0.0122807]
[1730997335334,0.102,75745.0,75744.0,0.0122807]
[1730997335335,0.1,75745.0,75744.0,0.0122807]
[1730997335483,0.102,75745.0,75744.0,0.0122807]
[1730997335685,0.102,75745.0,75744.0,0.03274853]
[1730997335892,0.23924102,75745.0,75744.0,0.03274853]
[1730997336093,0.30201849,75745.0,75744.0,0.0122807]
[1730997336292,0.41758063,75745.0,75744.0,0.0122807]
[1730997336490,0.46758063,75745.0,75744.0,0.0122807]
[1730997336721,0.46558063,75745.0,75744.0,0.0122807]
[1730997336927,0.56130902,75745.0,75744.0,0.0122807]
[1730997337128,0.56730902,75745.0,75744.0,0.0122807]
[1730997337373,0.57430902,75745.0,75744.0,0.0122807]
[1730997337707,0.52034688,75745.0,75744.0,0.0122807]
[1730997337933,0.53434688,75745.0,75744.0,0.0122807]
[1730997338142,0.007,75730.0,75729.0,0.001666]
[1730997338477,0.47509265,75730.0,75729.0,0.001666]
[1730997339098,0.55789265,75730.0,75729.0,0.001666]
[1730997339528,0.60369265,75730.0,75729.0,0.001666]
[1730997340152,0.60469265,75730.0,75729.0,0.001666]
[1730997340363,0.60369265,75730.0,75729.0,0.001666]
[1730997340780,0.61469265,75730.0,75729.0,0.001666]
[1730997340977,0.56689265,75730.0,75729.0,0.001666]
[1730997341182,0.29753865,75730.0,75729.0,0.001666]
[1730997341777,1.29753865,75730.0,75729.0,0.001666]
[1730997342021,1.07529763,75730.0,75729.0,0.001666]
[1730997342231,1.021,75730.0,75729.0,0.001666]
[1730997343232,1.0,75730.0,75729.0,0.001666]
[1730997343501,1.001,75730.0,75729.0,0.001666]
[1730997343741,1.0,75730.0,75729.0,0.001666]
[1730997345407,1.23724102,75730.0,75729.0,0.001666]
[1730997345916,1.23924102,75730.0,75729.0,0.001666]
[1730997346181,1.23724102,75730.0,75729.0,0.001666]
[1730997346420,1.24724102,75730.0,75729.0,0.001666]
[1730997346686,1.24924102,75730.0,75729.0,0.001666]
[1730997346927,1.38148379,75730.0,75729.0,0.001666]
[1730997347168,1.39248379,75730.0,75729.0,0.001666]
[1730997347379,1.38148379,75730.0,75729.0,0.001666]
[1730997347610,1.54652231,75730.0,75729.0,0.001666]
[1730997347844,1.55452231,75730.0,75729.0,0.001666]
[1730997348059,1.54352231,75730.0,75729.0,0.001666]
[1730997348295,1.53352231,75730.0,75729.0,0.001666]
[1730997348549,1.54752231,75730.0,75729.0,0.001666]
[1730997349148,1.56352231,75730.0,75729.0,0.001666]
[1730997349388,1.63551302,75730.0,75729.0,0.001666]
[1730997349987,1.72482231,75730.0,75729.0,0.001666]
[1730997350435,0.017,75725.0,75724.0,0.001494]
[1730997350656,0.32824102,75725.0,75724.0,0.001494]
[1730997350862,0.32624102,75725.0,75724.0,0.001494]
[1730997351633,0.33624102,75725.0,75724.0,0.001494]
[1730997351839,0.24724102,75725.0,75724.0,0.01380021]
[1730997352001,0.01,75725.0,75724.0,0.01380021]
[1730997352413,0.021,75725.0,75724.0,0.01380021]
[1730997354714,1.121,75725.0,75724.0,0.01380021]
[1730997354910,1.25324277,75725.0,75724.0,0.01380021]
[1730997355164,1.10604,75725.0,75724.0,0.01380021]
[1730997357879,1.10804,75725.0,75724.0,0.01380021]
[1730997358215,1.102,75725.0,75724.0,0.01380021]
[1730997358666,1.104,75725.0,75724.0,0.01380021]
[1730997359019,1.102,75725.0,75724.0,0.01381669]
[1730997359416,1.105,75725.0,75724.0,0.01381669]
[1730997359621,1.103,75725.0,75724.0,0.01381669]
[1730997360046,1.104,75725.0,75724.0,0.01381669]
[1730997362830,1.1854,75725.0,75724.0,0.01381669]
[1730997363047,1.1854,75725.0,75724.0,0.001494]
[1730997364347,1.104,75725.0,75724.0,0.001494]
[1730997365548,1.004,75725.0,75724.0,0.001494]
[1730997365747,1.004,75725.0,75724.0,0.09383246]
[1730997366383,1.004,75725.0,75724.0,0.23107348]
[1730997366603,0.000833,75744.0,75726.0,0.015]
[1730997366808,0.000833,75744.0,75727.0,0.14722007]
[1730997366809,0.19810218,75733.0,75727.0,0.14722007]
[1730997367015,0.000833,75744.0,75728.0,0.01233846]
[1730997367218,0.000833,75744.0,75729.0,0.14457948]
[1730997367219,0.19810218,75735.0,75729.0,0.14457948]
[1730997367431,0.05345056,75744.0,75730.0,0.01233846]
[1730997367643,0.05345056,75744.0,75726.0,0.005]
[1730997367644,0.05345056,75744.0,75731.0,0.14457948]
[1730997367849,0.05345056,75744.0,75732.0,0.01233846]
[1730997368058,0.05345056,75744.0,75733.0,0.01233846]
[1730997368282,0.05345056,75744.0,75734.0,0.01233846]
[1730997368496,0.05345056,75744.0,75724.0,0.131894]
[1730997368497,0.05345056,75744.0,75735.0,0.01233846]
[1730997368736,0.05345056,75744.0,75730.0,0.003]
[1730997368961,0.05345056,75744.0,75731.0,0.01232968]
[1730997369236,0.001,75733.0,75727.0,0.006]
[1730997369482,0.001,75733.0,75728.0,0.01232841]
[1730997369709,0.05345056,75744.0,75729.0,0.01232841]
[1730997369945,0.19810218,75739.0,75730.0,0.01332841]
[1730997370176,0.19810218,75739.0,75731.0,0.01232841]
[1730997370403,0.05345056,75744.0,75730.0,0.003]
[1730997370640,0.19810218,75742.0,75731.0,0.01232823]
[1730997370859,0.19810218,75742.0,75730.0,0.003]
[1730997371063,0.19810218,75742.0,75731.0,0.01232828]
[1730997371267,0.19810218,75742.0,75730.0,0.002]
[1730997371268,0.1,75741.0,75730.0,0.002]
[1730997371682,0.005,75736.0,75724.0,0.001494]
[1730997371897,0.22602923,75737.0,75730.0,0.001]
[1730997371898,0.005,75731.0,75730.0,0.001]
[1730997372115,0.13724102,75731.0,75730.0,0.001]
[1730997372327,0.13724102,75731.0,75729.0,0.002]
[1730997372544,0.13224102,75730.0,75724.0,0.001494]
[1730997372766,0.13224102,75730.0,75725.0,0.01232967]
[1730997372972,0.13224102,75730.0,75724.0,0.001494]
[1730997374235,0.012,75731.0,75724.0,0.001494]
[1730997374449,0.05378135,75734.0,75724.0,0.001494]
[1730997374654,0.005,75739.0,75724.0,0.001494]
[1730997374854,0.018,75730.0,75724.0,0.003494]
[1730997375064,0.008,75730.0,75724.0,0.002494]
[1730997375273,0.1,75733.0,75724.0,0.001494]
[1730997375480,0.13224102,75730.0,75724.0,0.002494]
[1730997375704,0.13224102,75730.0,75724.0,0.001494]
[1730997376109,0.14024102,75730.0,75724.0,0.002494]
[1730997376603,0.1,75729.0,75724.0,0.002494]
[1730997377457,0.15401136,75726.0,75724.0,0.001494]
[1730997378340,0.15401136,75726.0,75724.0,0.002494]
[1730997378542,0.15401136,75726.0,75724.0,0.001494]
[1730997378752,0.15401136,75726.0,75724.0,0.002494]
[1730997378959,0.16201136,75726.0,75724.0,0.003494]
[1730997379360,0.16201136,75726.0,75724.0,0.002494]
[1730997379707,0.16801136,75726.0,75724.0,0.003494]
[1730997380315,0.29810218,75725.0,75724.0,0.003494]
[1730997380571,0.32794102,75725.0,75724.0,0.003494]
[1730997380989,0.32994102,75725.0,75724.0,0.003494]
[1730997381193,0.32994102,75725.0,75724.0,0.002494]
[1730997381408,0.33794102,75725.0,75724.0,0.003494]
[1730997381834,0.32294102,75725.0,75724.0,0.002494]
[1730997382040,0.0617,75720.0,75711.0,0.0004]
[1730997382167,0.19594102,75720.0,75711.0,0.0004]
[1730997383185,0.19394102,75720.0,75711.0,0.0004]
[1730997383397,0.20994102,75720.0,75711.0,0.0004]
[1730997384038,0.47795238,75720.0,75711.0,0.0004]
[1730997384259,0.015,75712.0,75711.0,0.0004]
[1730997384552,0.40125238,75712.0,75711.0,0.0004]
[1730997384970,0.40325238,75712.0,75711.0,0.0004]
[1730997385645,0.42325238,75712.0,75711.0,0.0004]
[1730997386336,0.41425238,75712.0,75711.0,0.0004]
[1730997386792,0.42625238,75712.0,75711.0,0.0004]
[1730997387033,0.41525238,75712.0,75711.0,0.00028167]
[1730997387266,0.50915238,75712.0,75711.0,0.00028167]
[1730997389121,0.50915238,75712.0,75711.0,1e-08]
[1730997389380,0.017,75710.0,75709.0,0.00145401]
[1730997389646,0.24924102,75710.0,75709.0,0.00145401]
[1730997390574,0.1,75692.0,75677.0,0.0761]
[1730997391324,0.1,75692.0,75683.0,0.001666]
[1730997392002,0.23224102,75692.0,75683.0,0.001666]
[1730997392300,0.24424102,75692.0,75683.0,0.001666]
[1730997392550,0.015,75684.0,75683.0,0.001666]
[1730997392797,0.40325238,75684.0,75683.0,0.001266]
[1730997393039,0.43693767,75684.0,75683.0,0.001266]
[1730997393720,0.002,75673.0,75669.0,0.001494]
[1730997393950,0.13224102,75672.0,75669.0,0.001494]
[1730997394198,0.23224102,75672.0,75669.0,0.001494]
[1730997394890,0.1,75672.0,75669.0,0.001494]
[1730997395107,0.15901136,75674.0,75670.0,5.529e-05]
[1730997395108,0.1,75671.0,75670.0,5.529e-05]
[1730997396137,0.05285708,75671.0,75670.0,5.529e-05]
[1730997396374,0.2850981,75671.0,75670.0,5.529e-05]
[1730997396605,0.60507099,75671.0,75670.0,5.529e-05]
[1730997396855,0.45305963,75671.0,75670.0,5.529e-05]
[1730997397079,0.45905963,75671.0,75670.0,5.529e-05]
[1730997397295,0.41284868,75671.0,75670.0,5.529e-05]
[1730997397523,0.40884868,75671.0,75670.0,5.529e-05]
[1730997397741,0.40684868,75671.0,75670.0,5.529e-05]
[1730997397974,0.38414102,75671.0,75670.0,5.529e-05]
[1730997398188,0.37314102,75671.0,75670.0,5.529e-05]
[1730997398388,0.43344688,75671.0,75670.0,5.529e-05]
[1730997398621,0.017,75670.0,75669.0,0.001494]
[1730997398881,0.017,75667.0,75666.0,0.001494]
[1730997399122,0.24924102,75667.0,75666.0,0.001494]
[1730997399342,0.24724102,75667.0,75666.0,0.001494]
[1730997399563,0.24924102,75667.0,75666.0,0.001494]
[1730997400121,0.343929,75667.0,75666.0,0.001494]
[1730997400341,0.24724102,75667.0,75666.0,0.001494]
[1730997400794,0.26124102,75667.0,75666.0,0.001494]
[1730997401232,0.27524102,75667.0,75666.0,0.001494]
[1730997401455,0.26324102,75667.0,75666.0,0.001494]
[1730997401676,0.26124102,75667.0,75666.0,0.001494]
[1730997402364,0.32074688,75667.0,75666.0,0.001494]
[1730997402853,0.33674688,75667.0,75666.0,0.001494]
[1730997405696,0.32274688,75667.0,75666.0,0.001494]
[1730997405920,0.32074688,75667.0,75666.0,0.001494]
[1730997406143,0.26124102,75667.0,75666.0,0.001494]
[1730997406602,0.23224102,75667.0,75666.0,0.001494]
[1730997406846,0.26124102,75667.0,75666.0,0.001494]
[1730997407082,0.27524102,75667.0,75666.0,0.001494]
[1730997407320,0.005,75660.0,75653.0,0.001494]
[1730997407619,0.25401136,75656.0,75653.0,0.001494]
[1730997407873,0.38825238,75656.0,75653.0,0.001494]
[1730997408103,0.39325238,75656.0,75653.0,0.001494]
[1730997408386,0.44094838,75656.0,75653.0,0.001494]
[1730997408601,0.42696004,75656.0,75653.0,0.001494]
[1730997408808,0.39325238,75656.0,75653.0,0.001494]
[1730997409281,0.39125238,75656.0,75653.0,0.001494]
[1730997409522,0.40025238,75656.0,75653.0,0.001494]
[1730997410487,0.40825238,75656.0,75653.0,0.001494]
[1730997410722,0.44831317,75656.0,75653.0,0.001494]
[1730997411422,0.43325238,75656.0,75653.0,0.001494]
[1730997411655,0.012,75654.0,75653.0,0.001494]
[1730997411888,0.31474102,75654.0,75653.0,0.001494]
[1730997412118,0.46875238,75654.0,75653.0,0.001494]
[1730997412346,0.15401136,75630.0,75629.0,0.19810218]
[1730997412813,0.15401136,75630.0,75622.0,0.01228255]
[1730997413034,0.15401136,75630.0,75623.0,0.01228255]
[1730997413254,0.15401136,75630.0,75624.0,0.01228255]
[1730997413495,0.15401136,75630.0,75625.0,0.01228255]
[1730997413723,0.16001136,75630.0,75617.0,0.00508]
[1730997413955,0.15401136,75630.0,75618.0,0.01228414]
[1730997414178,0.15601136,75630.0,75619.0,0.01228414]
[1730997414400,0.19810218,75629.0,75620.0,0.01228414]
[1730997414654,0.19810218,75629.0,75620.0,0.01228588]
[1730997415115,0.19810218,75629.0,75621.0,0.01228588]
[1730997415448,0.20712455,75630.0,75622.0,0.01228588]
[1730997415686,0.19810218,75628.0,75623.0,0.01228588]
[1730997415916,0.15401136,75624.0,75617.0,8e-05]
[1730997416161,0.15401136,75624.0,75618.0,0.01228898]
[1730997416388,0.19810218,75622.0,75619.0,0.01228898]
[1730997416619,0.15401136,75618.0,75617.0,8e-05]
[1730997418945,0.28625238,75618.0,75617.0,8e-05]